Workbook

Sheet Introduction
B2: Energy savings form Alfa Laval
B4: Dear Customer,
B6: Today, we are faced with growing environmental concerns, increasing costs of energy and the need for reducing consumption of our natural resources.
B7: Alfa Laval has vast experience in selected applications in heat recovery, savings in energy costs by offering the most efficient and correct heat transfer equipment.
B9: Possible equipment generating waste heat are; cooling towers, air compressors, chillers, waste water and flash steam.
B10: This list of equipment all produce waste heat which is possible to recover and save on your heating costs.
B12: Alfa Laval and our partners are ready to help you with a solution unique to your needs.
B14: An example of Europen average energy cost is 0.10 Euro per kWh. kWh)
B15: Hence 1 year saving for 1 kWatt per 8 hrs a day, 20 days a month, 6 months a year is 96 euro/year (ie, per kW)
B16: Recovering 100 kWatt is equivilent to 9,600 Euro annual savings based on the above !!!
B18: Please contact your nearest Alfa Laval partner to help you on your journey to save energy and increase profitability.
B20: Best Regards,
B21: Alfa Laval

Sheet 1. Cooling tower-tap water
B1: Savings from cooling tower water heat recovery, used to pre heating tap water going to boiler
B2: Please insert figures in the left hand side table, results are calculated on the right hand side.
F4: DATA INPUT | I4: RESULTS OUTPUT
E5: Cooling tower water flowrate: | F5: 5 | G5: m³/hr | H5: kcal/hr | I5: =F5*(F6-F7)*1000 -> 110,000 | J5: kCal/hr Energy savings
E6: Inlet temperature to heat exchanger: | F6: 37 | G6: °C | H6: kWatt | I6: =I5/0.86/1000 -> 127.9 | J6: kWatt
E7: Outlet temperature from heat exchanger: | F7: 15 | G7: °C
E9: Number of hours operation per day: | F9: 8 | I9: =I6*F9*F12 -> €102 | J9: Daily savings
E10: Number of days operation per month: | F10: 20 | I10: =I6*F9*F10*F12 -> €2,047 | J10: Monthly savings
E11: Number of months operation per year: | F11: 3
E12: Cost of energy to generate 1 kWhr: | F12: 0.1 | G12: Euro
I13: =I10*F11 -> €6,140 | J13: One year savings
E16: Investment price of Alfa Laval heat exchanger: | F16: €5,000
E17: Investment installation piping costs: | F17: €2,000
E18: Investment other equipment: | F18: €3,000 | I18: =SUM(F16:F18) -> €10,000 | J18: Investment total
E20: Tap water inlet temperature: | F20: 20 | G20: °C | H20: Months | I20: =I18/I10 -> 4.9 | J20: Pay back period
E21: Tap water outlet (2°C approach to hot side): | F21: =F6-2 -> 35 | G21: °C | I21: =(I5/(F21-F20))/1000 -> 7.3 | J21: m³/hr

Sheet 2. Compressor-tap or space heat
B1: Savings from cooling tower water heat recovery, used to pre heating tap water going to boiler
B2: Please insert figures in the left hand side table, results are calculated on the right hand side.
C4: DATA | F4: RESULTS
B5: Hot water flowrate: | C5: 5.6 | D5: m³/hr | E5: kcal/hr | F5: =C5*(C6-C7)*1000 -> 61,600 | G5: Energy savings in kCal/hr (or kW below)
B6: Inlet temperature to heat exchanger: | C6: 71 | D6: °C | E6: kWatt | F6: =F5/0.86/1000 -> 72 | G6: Energy savings in kWatt
B7: Outlet temperature from heat exchanger: | C7: 60 | D7: °C
B9: Number of hours operation per day: | C9: 24 | E9: Euro | F9: =F6*C9*C13 -> €258 | G9: Daily savings
B10: Number of days operation per month: | C10: 20 | E10: Euro | F10: =F6*C9*C10*C13 -> €5,157 | G10: Monthly savings
B11: Number of months operation per year: | C11: 12
B13: Cost of energy to generate 1 kWhr: | C13: 0.15 | D13: Euro | E13: Euro | F13: =F10*C11 -> €61,887 | G13: Annual savings
B15: Investment price of Alfa Laval heat exchanger: | C15: €4,000 | E15: Euro | F15: =SUM(C15:C17) -> €8,000 | G15: Investment total
B16: Investment installation piping costs: | C16: €2,000
B17: Investment other equipment: | C17: €2,000 | E17: Months | F17: =F15/F10 -> 1.6 | G17: Pay back period, return on investment

Sheet 3. Waste water
B1: Savings from waste water
B2: Please insert figures in the left hand side table, results are calculated on the right hand side.
F3: DATA | I3: RESULTS
E4: Hot water flowrate: | F4: 20 | G4: m³/hr | H4: kcal/hr | I4: =F4*(F5-F6)*1000 -> 400,000 | J4: Energy savings in kCal/hr (or kW below)
E5: Inlet temperature to heat exchanger: | F5: 60 | G5: °C | H5: kWatt | I5: =I4/0.86/1000 -> 465 | J5: Energy savings in kWatt
E6: Outlet temperature from heat exchanger: | F6: 40 | G6: °C
E8: Number of hours operation per day: | F8: 24 | H8: Euro | I8: =I5*F8*F12 -> €1,116 | J8: Daily savings
E9: Number of days operation per month: | F9: 30 | H9: Euro | I9: =I5*F8*F9*F12 -> €33,488 | J9: Monthly savings
E10: Number of months operation per year: | F10: 12
H11: Euro | I11: =I9*F10 -> €401,860 | J11: Annual savings
E12: Cost of energy to generate 1 kWhr: | F12: 0.1 | G12: Euro
E14: Investment price of Alfa Laval heat exchanger: | F14: €30,000
E15: Investment installation piping costs: | F15: €10,000
E16: Investment other equipment: | F16: €10,000 | I16: =SUM(F14:F16) -> €50,000 | J16: Investment total
H17: Months | I17: =I16/I9 -> 1.5 | J17: Pay back period, return on investment
